[Event "Budapest GM ONE WEEK Feb 2024"]
[Site "Budapest"]
[Date "2024.02.26"]
[Round "1.1"]
[White "Tomic, Aleksandar"]
[Black "Grover, Sahaj"]
[Result "0-1"]
[ECO "D00"]
[WhiteElo "2398"]
[BlackElo "2503"]
[Annotator "TA"]
[PlyCount "86"]
[EventDate "2024.02.25"]
[EventType "tourn"]
[EventCountry "HUN"]
[SourceTitle "playchess.com"]
[Source "ChessBase"]
[SourceQuality "1"]
[TimeControl "5400+30"]

{[%evp 21,86,-87,-71,-88,70,80,156,163,222,226,207,210,197,9,18,-48,-37,-41,0,-3,0,0,0,-36,-43,-35,-33,-29,-12,-35,41,-244,-256,-316,-310,-304,-276,-321,-214,-444,-420,-493,-444,-858,-383,-385,-361,-444,-440,-452,-426,-443,-433,-441,-23,-29984,-29985,-29985,-29986,-29986,-29987,-29987,-29988,-29994,-29995,-29995,-29996]} 1. d4 {[%emt 0:00:22]} d5 {[%emt 0:00:27]} 2. Bf4 {[%emt 0:03:26]} c5 {[%emt 0:01:54]} 3. e4 {[%emt 0:01:32]} dxe4 {[%emt 0:04:55]} 4. d5 {[%emt 0:00:45]} Nf6 {[%emt 0:00:07]} 5. Nc3 {[%emt 0:00:22]} a6 {[%emt 0:00:04]} 6. f3 {[%emt 0:05:54] D00: 1 d4 d5: Unusual lines.} exf3 {[%emt 0:00:32]} 7. Qxf3 {[%emt 0:05:45]} g6 {[%emt 0:00:55]} 8. h3 {[%emt 0:04:17]} Bg7 {[%emt 0:00:09]} 9. O-O-O {[%emt 0:02:22]} O-O $146 {[%emt 0:04:45]} ({Predecessor:} 9... Nbd7 10. g4 O-O 11. Bg2 Ra7 12. Qg3 b5 13. h4 b4 14. Ne4 Nxe4 15. Bxe4 Re8 {1-0 In't Veld,R-Becic,S Haarlem Nova College op 3rd 2004 (6)}) 10. g4 {[%emt 0:05:54]} Qa5 {[%emt 0:02:57]} 11. Qg3 {[%emt 0:11:14]} Nbd7 {[%emt 0:00:45]} 12. Nf3 {[%emt 0:21:12]} Nb6 $2 {[%emt 0:07:58]} (12... b5 $17 {...b4 would now be deadly.} 13. Bc7 Nb6) 13. Nd2 $1 $14 {[%emt 0:03:33]} Nbxd5 {[%emt 0:07:15]} (13... Nfxd5 14. Nb3 Qb4 15. Nxd5 Nxd5 16. Rxd5 $18) (13... c4 $142) 14. Nb3 $16 {[%emt 0:09:19]} Qb4 {[%emt 0:03:48]} (14... Qd8 $142) 15. Rxd5 $18 {[%emt 0:07:53]} (15. Nxd5 Nxd5 16. Rxd5 Be6) 15... Nxd5 {[%emt 0:00:27]} 16. Nxd5 {[%emt 0:00:07]} Qa4 {[%emt 0:00:04]} 17. Kb1 $2 {[%emt 0:07:15]} (17. Nxc5 Qd4 18. Nxe7+ Kh8 $17) (17. Nxe7+ $18 Kh8 18. Nd5 (18. Nxc5 Qb4 $19)) 17... Be6 $11 {[%emt 0:00:16]} 18. Nc3 {[%emt 0:05:28]} (18. Nxc5 Qd4 19. Nxe7+ Kh8 $19) (18. Nxe7+ $11 Kh8 19. Bg2 (19. Nxc5 $2 Qxa2+ 20. Kc1 Bxb2+ 21. Kd2 Qa5+ 22. c3 Qxc5 $19)) 18... Bxc3 $15 {[%emt 0:07:12]} 19. bxc3 {[%emt 0:00:01]} Rfd8 {[%emt 0:00:07]} 20. Be2 {[%emt 0:01:12]} (20. Nxc5 $2 Qxa2+ 21. Kc1 Qa1#) 20... c4 {[%emt 0:06:10]} 21. Nd4 {[%emt 0:01:42]} Bd5 {[%emt 0:02:51]} 22. Re1 {[%emt 0:01:20]} (22. Rg1 $5) 22... f6 {[%emt 0:02:30]} 23. Bh6 $1 {[%emt 0:00:29]} e5 {[%emt 0:00:14]} 24. Nf5 $1 {[%emt 0:00:34]} Rd7 {[%emt 0:00:35]} (24... gxf5 25. gxf5+ Kf7 26. Qg7+ Ke8 27. Bh5+) (24... Qb5+ $6 25. Ka1 $16) 25. Ne3 {[%emt 0:00:16]} Bf7 {[%emt 0:01:34]} (25... Rc8 $15 26. Rd1 Bf7) 26. g5 $2 {[%emt 0:00:28][%mdl 8192]} (26. Qf3 $14 {keeps the upper hand.} Rd6 27. Qxb7 Qb5+ 28. Qxb5 axb5 29. Kb2) 26... Qb5+ $19 {[%emt 0:00:37]} 27. Ka1 {[%emt 0:00:31]} f5 {[%emt 0:00:05]} 28. Rb1 {[%emt 0:00:33]} Qc5 {[%emt 0:01:26]} 29. Qf3 {[%emt 0:00:39]} Re8 {[%emt 0:01:50]} 30. h4 $2 {[%emt 0:00:33]} (30. Nxf5 gxf5 (30... e4 31. Qe3 $11) 31. Qxf5) 30... b5 {[%emt 0:00:51]} 31. Rf1 {[%emt 0:00:27]} Qa3 {[%emt 0:02:14]} 32. Kb1 {[%emt 0:00:29]} (32. Nxf5 $142 gxf5 33. g6 hxg6 (33... Bxg6 34. h5 $15) 34. Bc1) 32... Qxc3 {[%emt 0:01:16]} (32... e4 $142 33. Qf4 Qxc3 (33... Rd2 34. Nxf5 $16) 34. Nxf5 gxf5) 33. Nd5 $19 {[%emt 0:00:22]} Qa5 {[%emt 0:07:33]} (33... Qxf3 34. Nf6+ Kh8 35. Bxf3 $14 (35. Rxf3 $2 Rd2 $19)) 34. Nf6+ {[%emt 0:00:05]} Kh8 {[%emt 0:00:02]} 35. Nxd7 {[%emt 0:00:47]} c3 {[%emt 0:00:03]} 36. Kc1 {[%emt 0:00:21] [#]} (36. a3 $2 Qxa3) 36... Qb4 $1 {[%emt 0:00:04]} 37. Bd3 {[%emt 0:00:56]} Bc4 $2 {[%emt 0:04:00]} ({Black should try} 37... e4 $19 38. Qf4 Bxa2) 38. Qc6 $2 {[%emt 0:00:30][%mdl 8192]} (38. Bxc4 Qb2+ 39. Kd1 Qb1+ (39... bxc4 40. Ke1 $16) 40. Ke2 Qxc2+ 41. Ke3 Qd2#) (38. Qe3 $11 f4 39. Rxf4 Qb2+ 40. Kd1 Qb1+ (40... Bxd3 41. Qxe5+ Rxe5 42. Rf8#) 41. Ke2 Qxc2+ 42. Kf3 Qd1+ 43. Kf2 Qd2+ (43... exf4 44. Qxe8+ Bg8 45. Qe5#) 44. Qxd2 cxd2 45. Rxc4) 38... Qb2+ {[%emt 0:00:22]} 39. Kd1 {[%emt 0:00:00]} Qb1+ {[%emt 0:00:06]} (39... Qxa2 40. Qf6+ Kg8 41. Qg7#) 40. Ke2 {[%emt 0:00:02]} Qxc2+ {[%emt 0:00:06]} ({And not} 40... Qxa2 41. Qf6+ Kg8 42. Qg7#) 41. Kf3 {[%emt 0:01:30]} Qxd3+ {[%emt 0:00:05]} ({Worse is} 41... Bxd3 42. Qf6+ Kg8 43. Qg7#) 42. Kf2 {[%emt 0:00:20]} Qxf1+ {[%emt 0:00:06]} 43. Kg3 {[%emt 0:00:20]} Qg1+ {[%emt 0:00:11]} ({Weaker is} 43... Bxa2 44. Qf6+ Kg8 45. Qg7#) 0-1

[Event "Budapest GM ONE WEEK Feb 2024"]
[Site "Budapest"]
[Date "2024.02.26"]
[Round "1.2"]
[White "Pribelszky, Bence"]
[Black "Paszewski, Mateusz"]
[Result "1/2-1/2"]
[ECO "B15"]
[WhiteElo "2371"]
[BlackElo "2286"]
[Annotator "TA"]
[PlyCount "86"]
[EventDate "2024.02.25"]
[EventType "tourn"]
[EventCountry "HUN"]
[SourceTitle "playchess.com"]
[Source "ChessBase"]
[SourceQuality "1"]
[TimeControl "5400+30"]

{[%evp 14,86,23,21,24,27,45,49,50,52,45,46,49,51,45,32,43,7,15,-6,-7,-8,-14,-27,-18,-104,-55,-103,-91,-93,-95,-96,-106,-85,-60,-60,-59,-66,-52,-56,-46,-96,-96,-96,-96,-96,-96,-96,-8,-8,-8,-8,-8,-8,-8,-8,-8,-8,-8,-8,-8,-8,-8,-8,0,-9,0,-9,0,-9,0,-10,0,-18,0]} 1. e4 {[%emt 0:00:03]} c6 {[%emt 0:00:24]} 2. d4 {[%emt 0:00:21]} d5 {[%emt 0:00:05]} 3. Nc3 {[%emt 0:00:07]} dxe4 {[%emt 0:00:00]} 4. Nxe4 {[%emt 0:00:10]} Nf6 {[%emt 0:00:27]} 5. Nxf6+ exf6 {[%emt 0:00:02]} 6. c3 {[%emt 0:00:18]} Bd6 {[%emt 0:00:07]} 7. Bd3 {[%emt 0:00:13]} O-O {[%emt 0:00:45]} 8. Qc2 {[%emt 0:00:09] Active counter play!} Re8+ {[%emt 0:00:02]} 9. Ne2 {[%emt 0:00:08]} h5 {[%emt 0:00:04][%cal Bh7h5,Bh5h4][%mdl 32]} 10. O-O {[%emt 0:00:16]} h4 {[%emt 0:00:08] White is slightly better.} 11. h3 {[%emt 0:00:07]} Nd7 {[%emt 0:00:21]} 12. Be3 {[%emt 0:01:12]} Nf8 {[%emt 0:00:53]} 13. Rad1 {[%emt 0:08:28]} Be6 {[%emt 0:03:18]} 14. c4 {[%emt 0:11:11]} Rc8 {[%emt 0:01:30]} 15. Qd2 {[%emt 0:23:12]} Ng6 {[%emt 0:15:37]} 16. d5 {[%emt 0:05:33]} cxd5 {[%emt 0:01:56]} 17. cxd5 {[%emt 0:00:12]} ({Don't play} 17. Bxa7 b6 (17... dxc4 $2 {perishes.} 18. Bxg6 fxg6 19. Qxd6 $18) 18. b4 Ne5 $17 (18... dxc4 $2 19. Bxg6 Bc7 20. Bh7+ Kh8 21. Qxd8 $18)) 17... Bd7 {[%emt 0:00:05]} 18. Bxg6 {[%emt 0:17:27]} fxg6 {[%emt 0:00:25]} 19. Nf4 {[%emt 0:02:01]} (19. Rfe1 $11 {remains equal.}) 19... Bf5 {[%emt 0:22:02]} ({Black should play} 19... Qe7 $17 20. Qd4 (20. Nxg6 Qe4 $17) 20... Qe4) 20. Rc1 {[%emt 0:06:21]} (20. Ne6 $15 Qd7 21. Bxa7) 20... Qd7 {[%emt 0:05:07]} 21. Rxc8 {[%emt 0:14:52]} Rxc8 {[%emt 0:00:55]} 22. Rc1 {[%emt 0:00:08]} Rxc1+ {[%emt 0:05:36]} 23. Qxc1 {[%emt 0:00:02]} Bxf4 {[%emt 0:16:33]} 24. Bxf4 {[%emt 0:00:06]} Qxd5 $17 {[%emt 0:00:03][%mdl 4096] Endgame. KQB-KQB} 25. b3 {[%emt 0:00:15]} a6 {[%emt 0:03:28]} 26. Be3 {[%emt 0:01:48]} Kh7 {[%emt 0:02:40]} 27. Qc4 {[%emt 0:06:23]} ({White should try} 27. Qe1 $15) 27... Qxc4 {[%emt 0:14:58]} 28. bxc4 {[%emt 0:00:01] KB-KB} Be6 {[%emt 0:00:04]} 29. a4 {[%emt 0:00:07][%cal Ba2a4,Ba4a5,Ba5b6][%mdl 32]} Bxc4 {[%emt 0:00:03]} 30. a5 {[%emt 0:00:08]} b5 {[%emt 0:00:30]} (30... g5 $17 31. f3 Be2) 31. axb6 $11 {[%emt 0:00:03] [#] Hoping for b7. The position is equal.} Bd5 {[%emt 0:00:02]} 32. Bd2 {[%emt 0:04:15]} g5 {[%emt 0:00:03]} 33. f3 {[%emt 0:00:27]} Kg6 {[%emt 0:00:17]} 34. Kf2 {[%emt 0:00:12]} Kf5 {[%emt 0:05:38]} 35. Ke3 {[%emt 0:00:05]} Ke6 {[%emt 0:00:08]} 36. Bb4 {[%emt 0:00:42]} Bc6 {[%emt 0:01:01]} 37. Kd4 {[%emt 0:00:58]} g6 {[%emt 0:01:33]} 38. Bd2 {[%emt 0:00:50]} Bb7 {[%emt 0:01:03]} 39. Bc3 {[%emt 0:00:37]} Bc6 {[%emt 0:00:36]} 40. Ke3 {[%emt 0:00:30]} Bb7 {[%emt 0:00:41]} 41. Kf2 {[%emt 0:00:27]} Bc6 {[%emt 0:00:39]} 42. Bb4 {[%emt 0:00:25]} Bb7 {[%emt 0:00:44]} 43. Bc3 {[%emt 0:00:03]} Bc6 {[%emt 0:00:42] Weighted Error Value: White=0.11 (very precise) /Black=0.11 (very precise) .  Mistake:       	White=3     	Black=2      Inaccurate:     	White=1     	---        OK:         	White=14    	Black=13     Best:        	White=1     	Black=1} 1/2-1/2

[Event "Budapest GM ONE WEEK Feb 2024"]
[Site "Budapest"]
[Date "2024.02.26"]
[Round "1.3"]
[White "Bodi, Tibor"]
[Black "Gaal, Zsoka"]
[Result "1/2-1/2"]
[ECO "B11"]
[WhiteElo "2294"]
[BlackElo "2341"]
[Annotator "TA"]
[PlyCount "137"]
[EventDate "2024.02.25"]
[EventType "tourn"]
[EventCountry "HUN"]
[SourceTitle "playchess.com"]
[Source "ChessBase"]
[SourceQuality "1"]
[TimeControl "5400+30"]

{[%evp 33,137,-73,-68,-96,-56,-56,-56,-65,-56,-64,-45,-38,-27,-27,-27,-28,-18,-50,-50,-50,-50,-50,-50,-50,-33,-72,-72,-87,-52,-54,-42,-67,-4,-11,0,-18,4,0,32,0,41,32,122,58,78,24,42,38,50,39,66,52,112,115,128,101,141,136,139,129,121,121,160,83,93,14,21,9,16,-39,-29,-43,-16,-23,-17,-25,0,0,0,0,0,0,0,0,0,0,0,0,0,0,31,0,11,0,27,15,15,11,35,37,77,38,38,11,33,33]} 1. e4 {[%emt 0:13:00]} c6 {[%emt 0:00:23]} 2. Nc3 {[%emt 0:01:39]} d5 {[%emt 0:00:09]} 3. Nf3 {[%emt 0:00:07]} Bg4 {[%emt 0:00:20]} 4. h3 {[%emt 0:00:25]} Bxf3 {[%emt 0:00:21]} 5. Qxf3 {[%emt 0:00:02]} Nf6 {[%emt 0:00:18]} 6. Be2 {[%emt 0:02:05]} d4 {[%emt 0:13:31] 6...g6 ist die kritische Fortsetzung. B11: Caro-Kann (Zweispringer-Variante).} 7. Nd1 {[%emt 0:00:34]} e5 {[%emt 0:01:44]} 8. O-O {[%emt 0:00:37]} Bd6 $146 {[%emt 0:05:22]} ({Predecessor:} 8... Nbd7 9. a4 Bd6 10. Bc4 Qe7 11. d3 h6 12. Qe2 g5 13. c3 O-O-O 14. g3 Rdg8 {1-0 Gajcin,M (2271)-Malikova,M (1756) Olympiad Women-44 2022 (7.4)}) 9. Bc4 {[%emt 0:03:35]} O-O {[%emt 0:01:21]} 10. d3 {[%emt 0:00:08]} b5 {[%emt 0:04:45]} 11. Bb3 {[%emt 0:00:14]} Nbd7 {[%emt 0:00:27]} 12. a3 {[%emt 0:01:34]} c5 {[%emt 0:02:34]} 13. Bg5 {[%emt 0:08:48]} h6 {[%emt 0:06:02]} 14. Bd2 {[%emt 0:02:59]} Nb6 {[%emt 0:08:31]} 15. c4 {[%emt 0:08:37]} bxc4 {[%emt 0:03:02]} 16. dxc4 {[%emt 0:01:33]} a5 {[%emt 0:01:55]} 17. a4 {[%emt 0:00:26]} Re8 {[%emt 0:07:13]} 18. g3 {[%emt 0:02:24]} Nbd7 {[%emt 0:03:35]} 19. Bc2 {[%emt 0:00:40]} Nf8 {[%emt 0:03:15]} 20. Ra3 {[%emt 0:02:37]} Ne6 {[%emt 0:04:22]} 21. h4 {[%emt 0:01:12]} Rb8 {[%emt 0:04:36]} 22. Rb3 {[%emt 0:01:34]} Bc7 {[%emt 0:03:33]} 23. Rxb8 {[%emt 0:00:28]} Qxb8 {[%emt 0:01:15]} 24. Qd3 {[%emt 0:04:22]} Rd8 {[%emt 0:06:36]} 25. f3 {[%emt 0:00:32]} Nh5 {[%emt 0:01:59]} 26. Kg2 {[%emt 0:01:37]} Rd6 {[%emt 0:02:13]} 27. b3 {[%emt 0:02:02]} Qd8 {[%emt 0:05:20]} 28. Rh1 {[%emt 0:02:46]} Qf6 {[%emt 0:01:06]} 29. Nf2 {[%emt 0:03:30]} Qg6 {[%emt 0:01:38]} 30. Ng4 {[%emt 0:04:47]} Rd8 {[%emt 0:00:09]} 31. Rh3 {[%emt 0:01:50]} Rd7 {[%emt 0:03:22]} 32. Kf2 {[%emt 0:01:38]} f6 {[%emt 0:00:50]} (32... Nf6 $15) 33. Ke2 {[%emt 0:02:09]} Kf8 {[%emt 0:00:26]} 34. Kd1 {[%emt 0:00:53]} Ke8 {[%emt 0:01:39]} 35. Kc1 {[%emt 0:01:20]} Kd8 {[%emt 0:00:04]} 36. Kb2 {[%emt 0:00:45]} Kc8 {[%emt 0:00:05]} (36... Nxg3 $5 37. Rxg3 h5 $11) 37. Qf1 {[%emt 0:03:02]} Kb7 {[%emt 0:01:00]} (37... Nxg3 $14 38. Rxg3 h5) 38. Bd3 {[%emt 0:00:21]} ({Günstiger ist} 38. Qe1 $16) 38... Ka6 {[%emt 0:00:54]} 39. Qg2 {[%emt 0:03:51]} (39. Nf2 $16) 39... Ka7 {[%emt 0:01:03]} 40. Qe2 {[%emt 0:00:44]} Qe8 {[%emt 0:01:13]} 41. Nf2 {[%emt 0:01:08]} Rd8 {[%emt 0:01:19]} 42. Ka2 {[%emt 0:00:55]} Qg6 {[%emt 0:01:07]} (42... Qc6 $14) 43. Qe1 $16 {[%emt 0:00:43]} Ka6 {[%emt 0:00:03]} 44. Bb1 {[%emt 0:00:58]} d3 {[%emt 0:01:01]} (44... Nxg3 $2 45. Qg1 $18) 45. Nxd3 {[%emt 0:00:34]} ({Bloß nicht} 45. Bxd3 Nd4 $14 (45... Nxg3 $2 {zu gefräßig.} 46. Qg1 $18)) 45... Qe8 {[%emt 0:00:28]} 46. Be3 {[%emt 0:00:21]} Qc6 {[%emt 0:00:06]} 47. Qe2 {[%emt 0:05:30]} g6 {[%emt 0:00:45]} 48. Qd2 {[%emt 0:01:49]} ({Besser ist} 48. Bxh6 Nd4 49. Qf2) 48... f5 {[%emt 0:00:29]} 49. Qe1 {[%emt 0:03:43]} (49. Bxh6 $16 {Droht stark Bg5.} f4 50. gxf4) 49... f4 $11 {[%emt 0:00:12]} 50. gxf4 {[%emt 0:01:13]} Nhxf4 {[%emt 0:00:58]} 51. Nxf4 {[%emt 0:00:57]} ({Vorzuziehen ist} 51. Bxf4 $11 exf4 52. Bc2) 51... exf4 $15 {[%emt 0:00:09]} 52. Bc1 {[%emt 0:00:51]} Be5 {[%emt 0:00:26]} 53. Rh2 {[%emt 0:01:36]} Nd4 {[%emt 0:00:18]} 54. Qd1 $1 {[%emt 0:00:17]} Rb8 {[%emt 0:00:55]} 55. Bc2 {[%emt 0:00:40]} Rd8 {[%emt 0:00:56]} 56. Rd2 {[%emt 0:00:10]} Qf6 {[%emt 0:00:17]} 57. Ba3 {[%emt 0:01:02]} Kb6 {[%emt 0:00:22]} 58. Qg1 {[%emt 0:00:19]} Rd6 {[%emt 0:00:52]} 59. Qg4 {[%emt 0:00:44]} Qe6 {[%emt 0:00:29]} 60. Qxe6 {[%emt 0:00:45]} Rxe6 {[%emt 0:00:02]} 61. Bd1 {[%emt 0:00:19]} Bf6 {[%emt 0:00:04]} 62. Bb2 {[%emt 0:00:08]} Rd6 {[%emt 0:01:22]} 63. Bc2 {[%emt 0:02:06]} Kc6 {[%emt 0:00:22]} 64. e5 {[%emt 0:00:27]} Bxe5 {[%emt 0:00:06]} 65. Be4+ {[%emt 0:00:04]} Kb6 {[%emt 0:00:39]} 66. Rg2 {[%emt 0:00:14]} Nc6 {[%emt 0:00:38]} 67. Bxc6 {[%emt 0:03:16]} ({Doch nicht} 67. Rxg6 Rxg6 68. Bxg6 Bxb2 69. Kxb2 Nd4 $11) 67... Bxb2 {[%emt 0:00:04]} 68. Bd5 {[%emt 0:00:18]} Bd4 {[%emt 0:00:12]} 69. Kb1 {[%emt 0:00:21]} 1/2-1/2

[Event "Budapest GM ONE WEEK Feb 2024"]
[Site "Budapest"]
[Date "2024.02.26"]
[Round "1.4"]
[White "Pap, Misa"]
[Black "Pasti, Aron"]
[Result "0-1"]
[ECO "C90"]
[WhiteElo "2422"]
[BlackElo "2389"]
[Annotator "TA"]
[PlyCount "120"]
[EventDate "2024.02.25"]
[EventType "tourn"]
[EventCountry "HUN"]
[SourceTitle "playchess.com"]
[Source "ChessBase"]
[SourceQuality "1"]
[TimeControl "5400+30"]

{[%evp 50,120,27,11,11,10,25,14,27,0,0,-36,-37,-31,-55,-71,-74,-81,-91,-87,-73,-84,-69,-81,-89,-91,-35,-240,-220,-221,-230,-231,-239,-690,-597,-1980,-1824,-29983,-29984,-29985,-29986,-29988,-29989,-29989,-29990,-29990,-29989,-29989,-5698,-5639,-5596,-5409,-4060,-5029,-4856,-6079,-5992,-5310,-1495,-1068,0,-29964,-5928,-29982,-29983,-29991,-29992,-29992,-29993,-29993,-29993,-29994,-29995]} 1. e4 {[%emt 0:00:18]} e5 {[%emt 0:00:09]} 2. Nf3 {[%emt 0:00:08]} Nc6 {[%emt 0:00:08]} 3. Bb5 {[%emt 0:00:07]} a6 {[%emt 0:00:26]} 4. Ba4 {[%emt 0:00:05]} Nf6 {[%emt 0:00:10]} 5. O-O {[%emt 0:00:15]} Be7 {[%emt 0:00:08]} 6. Re1 {[%emt 0:00:50]} b5 {[%emt 0:00:10]} 7. Bb3 {[%emt 0:00:05]} O-O {[%emt 0:00:11]} 8. d3 {[%emt 0:03:16]} d6 {[%emt 0:01:40]} 9. c3 {[%emt 0:03:17]} Na5 {[%emt 0:00:41]} 10. Bc2 {[%emt 0:00:05]} c5 {[%emt 0:00:06]} 11. Nbd2 {[%emt 0:00:08]} Qc7 {[%emt 0:01:27]} 12. Nf1 {[%emt 0:00:26]} Re8 {[%emt 0:01:27]} 13. h3 {[%emt 0:03:09]} Nc6 {[%emt 0:00:13]} 14. Bg5 {[%emt 0:00:44] C90: Closed Ruy Lopez with 7...d6: Early deviations.} Nd7 {[%emt 0:07:54]} 15. a4 {[%emt 0:07:05]} Bb7 {[%emt 0:06:55]} 16. h4 $146 {[%emt 0:16:27]} ({Predecessor:} 16. Ne3 Qd8 17. Bxe7 Nxe7 18. Bb3 Nf6 19. Ng5 d5 20. exd5 Nexd5 21. Nxd5 Bxd5 22. Bxd5 Qxd5 23. axb5 axb5 24. Rxa8 Rxa8 {0-1 Ater,I-Tseitlin,M (2415) Beersheba-B 1990}) 16... h6 {[%emt 0:08:15]} 17. Bd2 {[%emt 0:00:07]} Nf6 {[%emt 0:04:47]} 18. Ne3 {[%emt 0:13:49]} Bf8 {[%emt 0:01:11]} 19. Nh2 {[%emt 0:02:35]} Ne7 {[%emt 0:04:26]} 20. Nhg4 {[%emt 0:03:00]} Nh7 {[%emt 0:06:20]} 21. Qf3 {[%emt 0:02:58]} h5 {[%emt 0:00:59]} 22. Nh2 {[%emt 0:01:25]} Nf6 {[%emt 0:00:05]} 23. g4 {[%emt 0:05:32]} hxg4 {[%emt 0:06:34]} 24. Nhxg4 {[%emt 0:00:20]} Nxg4 {[%emt 0:00:06]} 25. Qxg4 {[%emt 0:01:13]} d5 {[%emt 0:02:32]} 26. Qg3 {[%emt 0:02:17]} dxe4 {[%emt 0:05:53]} 27. dxe4 {[%emt 0:00:11]} Rad8 {[%emt 0:00:41]} 28. Rad1 {[%emt 0:01:42]} Rd6 {[%emt 0:04:43]} 29. Ng4 {[%emt 0:03:49]} (29. Qxe5 $2 Rg6+ $19) 29... Ng6 $1 {[%emt 0:02:36]} 30. Be3 {[%emt 0:11:37]} Nf4 {[%emt 0:09:02]} 31. Rxd6 {[%emt 0:02:38]} Qxd6 {[%emt 0:00:36]} (31... Bxd6 $2 32. Nf6+ Kf8 33. Qxg7+ (33. Nxe8 Kxe8 34. Qxg7 Bf8 $18) 33... Kxg7 34. Nxe8+ Kg6 35. Nxc7 $18) 32. Kh2 {[%emt 0:03:31]} (32. Nxe5 $2 Nh5 33. Nxf7 Qxg3+ (33... Kxf7 $2 34. Qg5 $19) 34. fxg3 Kxf7 $19) 32... Re6 {[%emt 0:07:38]} 33. Rd1 {[%emt 0:00:45]} (33. Nxe5 $2 Nh5 34. Nxf7 Kxf7 35. Qxd6 Bxd6+ 36. e5 Bxe5+ (36... Rxe5 $2 37. Kg1 $19) 37. Kg1 Bf4 $19) 33... Qc7 {[%emt 0:00:53]} 34. f3 {[%emt 0:02:08]} (34. Nxe5 $2 Nh5 (34... Bxe4 35. Bxf4 Bxc2 36. Rd7 $16) 35. Rd7 Qb8 36. Rxb7 Qxb7 $19) 34... c4 {[%emt 0:00:47]} 35. Qf2 {[%emt 0:01:25]} Bc8 {[%emt 0:04:25]} 36. axb5 {[%emt 0:05:08]} axb5 {[%emt 0:00:30]} 37. Ra1 {[%emt 0:02:03]} Rg6 {[%emt 0:06:13]} ({Black should play} 37... b4 $17 {Hoping for ...b3.} 38. cxb4 Bxb4) 38. Rg1 $2 {[%emt 0:01:29]} ({White should try} 38. Bxf4 $1 $15 Bxg4 (38... exf4 39. e5 $11) 39. Be3) 38... Be7 {[%emt 0:01:00]} 39. Qe1 {[%emt 0:01:29]} Bc5 {[%emt 0:01:32]} 40. Bxc5 {[%emt 0:01:11]} Qxc5 {[%emt 0:00:01]} 41. h5 $2 {[%emt 0:00:52]} (41. Ne3) 41... Rg5 {[%emt 0:01:41]} 42. Qh4 {[%emt 0:00:01]} Qe7 {[%emt 0:00:10]} (42... Rxh5 $2 {loses.} 43. Nf6+ Kf8 44. Nxh5 $18) 43. Kg3 {[%emt 0:01:26]} Rxg4+ {[%emt 0:00:12]} 44. fxg4 {[%emt 0:00:09]} Ne2+ {[%emt 0:00:02]} 45. Kh3 {[%emt 0:00:14]} Nxg1+ {[%emt 0:00:05]} 46. Kg3 {[%emt 0:00:02]} Ne2+ {[%emt 0:00:08]} 47. Kh3 {[%emt 0:00:01]} Nf4+ {[%emt 0:00:11]} 48. Kg3 {[%emt 0:00:01]} Qxh4+ {[%emt 0:00:07]} (48... Qc5 $142 49. Qd8+ Kh7 50. Qd4 exd4 51. Kxf4 d3 52. Bd1 Qf2+ 53. Bf3 d2 (53... Qxb2 $2 54. e5 $19) 54. Ke5 f6+ (54... Qxf3 {is a self mate.} 55. Kd5 d1=Q+ 56. Kc5 Qe3+ 57. Kxb5 Qb3+ 58. Kc6 Qbb6+ 59. Kd5 Qe6#) 55. Kd6 Qb6+ (55... Qxf3 {leads to mate.} 56. Kd5 d1=Q+ 57. Kc5 Qf2+ 58. Kxb5 Qb3+ 59. Kc6 Qb7+ 60. Kd6 Qd7#) 56. Ke7 Qe6+ 57. Kf8 Bd7 58. Bh1 Qe8#) 49. Kxh4 $19 {[%emt 0:00:02]} Nd3 {[%emt 0:00:04]} 50. b3 {[%emt 0:00:05]} Bb7 {[%emt 0:00:02]} 51. bxc4 {[%emt 0:00:05]} bxc4 {[%emt 0:00:03]} 52. g5 {[%emt 0:00:08]} Bxe4 {[%emt 0:00:04]} 53. Ba4 {[%emt 0:00:05]} Nf2 {[%emt 0:00:05]} 54. Kg3 {[%emt 0:00:10]} Nd3 $2 {[%emt 0:00:09]} (54... Nh1+ $19 55. Kh2 Nf2) 55. Kg4 $2 {[%emt 0:00:21][%mdl 8192]} (55. Kh4 $11 Nf4 56. Kg4) 55... f5+ {[%emt 0:00:29]} 56. Kg3 {[%emt 0:00:04]} f4+ {[%emt 0:00:06]} 57. Kg4 {[%emt 0:00:03]} f3 {[%emt 0:00:13]} 58. Bb5 {[%emt 0:00:05]} f2 {[%emt 0:00:07]} 59. Bxc4+ {[%emt 0:00:04]} Kh8 {[%emt 0:00:03]} 60. h6 {[%emt 0:00:07]} f1=Q {[%emt 0:00:07]} 0-1